bitfinex-derivatives/quotes_ETHF0:USTF0_20250919
["timestamp","ask_amount","ask_price","bid_price","bid_amount"]
[1758292212628,1.64755392,4536.5,4536.4,1.02208]
[1758292212831,1.43985392,4536.5,4536.4,1.02208]
[1758292213223,1.43985392,4536.5,4536.4,0.39658]
[1758292213224,1.64755392,4536.5,4536.4,0.39658]
[1758292213833,1.64753235,4536.5,4536.4,0.58898]
[1758292214424,1.64753235,4536.5,4536.4,0.78858]
[1758292214829,1.64753235,4536.5,4536.4,0.58898]
[1758292215533,1.64753235,4536.5,4536.4,0.78858]
[1758292215732,1.87153235,4536.5,4536.4,0.78858]
[1758292215923,1.64753235,4536.5,4536.4,0.78858]
[1758292216326,1.43983235,4536.5,4536.4,1.02208]
[1758292216528,0.57909091,4536.5,4536.4,1.02208]
[1758292217225,0.89639091,4536.5,4536.4,1.02208]
[1758292219735,0.26099091,4536.5,4536.4,1.02208]
[1758292221235,0.77459091,4536.5,4536.4,1.02208]
[1758292221833,0.77307805,4536.5,4536.4,1.02208]
[1758292223735,0.89487805,4536.5,4536.4,1.02208]
[1758292223939,1.10257805,4536.5,4536.4,0.78858]
[1758292224137,1.10257805,4536.5,4536.4,1.02208]
[1758292224340,0.89487805,4536.5,4536.4,1.02208]
[1758292225143,0.57757805,4536.5,4536.4,1.02208]
[1758292225639,0.77307805,4536.5,4536.4,1.02208]
[1758292225845,0.89487805,4536.5,4536.4,1.02208]
[1758292226949,0.25947805,4536.5,4536.4,1.02208]
[1758292227140,0.57757805,4536.5,4536.4,1.02208]
[1758292227447,0.25947805,4536.5,4536.4,1.02208]
[1758292228347,0.55507805,4536.5,4536.4,1.02208]
[1758292228840,0.25947805,4536.5,4536.4,1.02208]
[1758292229145,0.55507805,4536.5,4536.4,1.02208]
[1758292229840,0.55507805,4536.5,4536.4,1.24608]
[1758292233048,0.25947805,4536.5,4536.4,1.24608]
[1758292233352,0.8299,4537.5,4537.4,0.39649]
[1758292233643,1.62345252,4537.5,4537.4,0.39649]
[1758292234042,0.4062,4537.2,4537.1,3.2078]
[1758292234239,0.7018,4536.6,4536.5,0.82047]
[1758292234443,0.96104949,4536.6,4536.5,0.82047]
[1758292235049,0.25924949,4536.6,4536.5,1.24877]
[1758292235250,0.2956,4536.9,4536.8,0.6282]
[1758292235439,0.75894427,4536.9,4536.8,0.6282]
[1758292236150,0.75894427,4536.9,4536.8,1.02475]
[1758292236537,0.75894427,4536.9,4536.8,0.79125]
[1758292236744,0.96104427,4536.9,4536.8,1.01525]
[1758292237350,0.96104427,4536.9,4536.8,1.24875]
[1758292237651,0.96104427,4536.9,4536.8,1.01525]
[1758292239552,0.1231,4536.5,4536.4,3.2078]
[1758292239749,0.8249,4536.5,4536.4,4.22208]
[1758292239954,1.08414427,4536.5,4536.4,4.22208]
[1758292240152,1.08414427,4536.5,4536.4,4.45558]
[1758292241150,1.08414427,4536.5,4536.4,3.99908]
[1758292241754,1.08414427,4536.5,4536.4,3.4077]
[1758292241949,1.08414427,4536.5,4536.4,3.82738]
[1758292242155,1.08414427,4536.5,4536.4,3.60438]
[1758292242350,1.08414427,4536.5,4536.4,0.39658]
[1758292243354,0.2956,4536.4,4536.2,0.022]
[1758292243560,0.96104427,4536.3,4536.2,0.022]
[1758292243952,0.75894427,4536.3,4536.2,0.6502]
[1758292244151,0.96104427,4536.3,4536.2,0.4167]
[1758292244355,0.96104427,4536.3,4536.2,0.2219]
[1758292244758,0.96104427,4536.3,4536.2,0.1999]
[1758292244960,0.96104427,4536.3,4536.2,0.3947]
[1758292245657,0.96104427,4536.3,4536.2,0.6282]
[1758292245957,0.75894427,4536.3,4536.2,0.6282]
[1758292246162,0.1281,4537.5,4537.4,0.39649]
[1758292246359,1.16304459,4537.5,4537.4,0.61949]
[1758292246554,0.4237,4537.5,4537.4,0.61949]
[1758292246859,0.2956,4537.5,4537.4,0.61949]
[1758292247060,0.8236,4538.0,4537.9,0.39645]
[1758292248358,0.2956,4538.8,4537.9,0.42435]
[1758292248663,0.7018,4538.9,4538.8,0.39637]
[1758292250756,0.7018,4538.9,4538.8,0.55007]
[1758292250953,0.5293,4539.5,4539.4,0.55002]
[1758292251159,0.5293,4539.5,4539.4,0.70372]
[1758292251561,0.8249,4539.5,4539.4,0.70372]
[1758292251962,0.8249,4539.5,4539.4,3.91152]
[1758292252562,0.8249,4539.5,4539.4,3.5152]
[1758292252955,0.8249,4539.5,4539.4,3.3615]
[1758292253465,0.8249,4539.5,4539.0,0.224]
[1758292253959,0.2041,4539.2,4539.1,0.55004]
[1758292254167,0.4997,4539.2,4539.1,0.70374]
[1758292254964,0.7018,4539.2,4539.1,0.1537]
[1758292257063,0.5293,4539.0,4538.9,3.2078]
[1758292257267,0.8249,4539.0,4538.9,3.2078]
[1758292257567,0.8249,4539.0,4538.9,3.3615]
[1758292258063,0.8249,4539.0,4538.6,0.224]
[1758292258064,0.5293,4539.0,4538.6,0.62038]
[1758292258267,0.5293,4539.0,4538.4,3.2078]
[1758292258268,0.1278,4538.5,4538.4,3.2078]
[1758292258566,0.7146,4538.1,4538.0,0.3284]
[1758292258767,0.7146,4538.1,4538.0,0.5524]
[1758292258968,0.3161,4538.1,4538.0,1.02254]
[1758292261075,0.1231,4539.5,4539.2,0.4021]
[1758292261369,0.1278,4540.5,4539.9,1.02088]
[1758292261564,0.5263,4540.5,4540.4,0.4011]
[1758292262364,0.5263,4540.5,4540.4,0.1927]
[1758292262671,0.5263,4540.5,4540.4,3.6089]
[1758292263174,0.8424,4540.5,4540.4,3.6089]
[1758292263369,0.3161,4540.5,4540.4,3.8324]
[1758292263575,0.512,4540.9,4540.8,0.7973]
[1758292263870,0.1278,4541.0,4540.8,1.0208]
[1758292264075,3.2078,4541.4,4540.6,0.226]
[1758292264076,3.6063,4541.4,4541.3,0.58885]
[1758292264466,0.7146,4541.4,4541.3,0.58885]
[1758292265873,0.7146,4541.4,4541.3,0.79725]
[1758292266271,0.7146,4541.4,4541.3,0.4011]
[1758292266673,0.7146,4541.4,4541.3,0.79725]
[1758292267980,0.6398,4542.0,4541.9,0.7972]
[1758292268275,4.0502,4542.5,4542.4,0.58876]
[1758292268480,4.0502,4542.5,4542.4,0.79716]
[1758292269084,0.8424,4542.5,4542.4,0.79716]
[1758292269277,0.8424,4542.5,4542.4,0.58876]
[1758292271077,0.8424,4542.5,4542.4,0.39606]
[1758292271273,0.7146,4542.4,4542.3,0.39606]
[1758292271779,0.8424,4542.0,4541.9,0.3961]
[1758292272779,0.3985,4541.6,4541.5,0.39613]
[1758292273085,0.7146,4541.6,4541.5,0.39613]
[1758292273477,0.7146,4541.4,4541.3,0.39615]
[1758292276492,0.7146,4541.4,4540.7,3.2078]
[1758292276692,0.7146,4540.8,4540.7,4.00511]
[1758292276989,0.7146,4540.8,4540.7,3.79671]
[1758292277690,0.7146,4540.8,4540.7,4.00511]
[1758292280090,0.7146,4540.8,4540.7,3.60401]
[1758292280587,0.7146,4540.8,4540.7,3.79671]
[1758292281289,0.7146,4540.8,4540.7,4.00511]
[1758292284394,0.1278,4540.5,4540.2,3.5078]
[1758292284701,0.7146,4540.3,4540.2,3.60405]
[1758292286091,0.7146,4540.3,4540.2,3.79675]
[1758292286286,0.3237,4541.0,4540.9,0.1927]
[1758292286487,0.33725312,4541.0,4540.9,0.6246]
[1758292286798,0.1959,4541.3,4541.2,0.4011]
[1758292286998,1.24472835,4541.3,4541.2,0.79726]
[1758292287198,1.45423419,4541.3,4541.2,0.79726]
[1758292289602,3.2078,4542.0,4541.2,5.24116]
[1758292289905,0.6144,4542.5,4542.4,0.39606]
[1758292290102,0.6144,4542.5,4542.4,3.60386]
[1758292291299,0.3201,4543.0,4542.9,0.39601]
[1758292291502,0.5287,4543.0,4542.9,0.39601]
[1758292291999,0.823,4543.0,4542.9,0.39601]
[1758292293607,0.823,4543.0,4542.9,3.60381]
[1758292297201,0.823,4543.0,4542.9,0.39601]
[1758292297407,0.5287,4543.0,4542.8,0.39602]
[1758292297613,0.6952,4542.9,4542.8,0.39602]
[1758292303617,0.2943,4543.2,4543.1,0.396]
[1758292303813,0.4866,4543.2,4543.1,0.396]
[1758292304119,0.6952,4543.2,4543.1,0.396]
[1758292304418,0.4866,4543.2,4543.1,0.396]
[1758292305215,0.6952,4543.2,4543.1,0.396]
[1758292306621,0.4866,4543.2,4543.1,0.396]
[1758292306922,0.6952,4543.2,4543.1,0.396]
[1758292307623,0.8159,4543.0,4542.9,0.39601]
[1758292309923,0.6073,4543.0,4542.9,0.39601]
[1758292311320,0.8159,4543.0,4542.9,0.39601]
[1758292311717,0.8159,4543.0,4542.8,3.2078]
[1758292311718,0.2943,4542.9,4542.8,3.2078]
[1758292311920,0.6952,4542.9,4542.8,3.2078]
[1758292313324,0.6952,4542.9,4542.7,0.022]
[1758292314627,1.15520674,4542.8,4542.7,0.022]
[1758292314930,1.15520674,4542.8,4542.5,0.39605]
[1758292315128,0.6952,4542.6,4542.5,0.39605]
[1758292316228,0.92655028,4542.6,4542.5,0.39605]
[1758292316929,0.6952,4542.6,4542.5,0.39605]
[1758292317325,0.4866,4542.6,4542.5,0.39605]
[1758292317520,0.6952,4542.6,4542.5,0.39605]
[1758292318232,0.92681953,4542.6,4542.5,0.39605]
[1758292321742,0.71821953,4542.6,4542.5,0.39605]
[1758292322031,0.91761953,4542.6,4542.5,0.39605]
[1758292326333,0.4961,4542.4,4542.3,0.41806]
[1758292326540,0.92711953,4542.4,4542.3,0.41806]
[1758292326739,0.92711953,4542.4,4542.3,0.39606]
[1758292326941,0.2976,4542.3,4542.2,3.2078]
[1758292327132,0.92711953,4542.3,4542.2,3.2078]
[1758292327439,0.82,4542.0,4541.9,0.3961]
[1758292327640,1.05161953,4542.0,4541.9,0.3961]
[1758292328032,0.6206,4542.0,4541.9,0.3961]
[1758292328539,0.82,4542.0,4541.9,0.3961]
[1758292330528,0.82,4542.0,4541.7,0.022]
[1758292330735,0.82,4542.0,4541.9,0.3961]
[1758292331041,0.6955,4541.8,4541.7,0.022]
[1758292331233,0.6955,4541.8,4541.7,0.41812]
[1758292331937,0.6955,4541.8,4541.7,0.39612]
[1758292333437,0.3979,4541.6,4541.5,3.2078]
[1758292333636,0.6955,4541.6,4541.5,3.2078]
[1758292333838,0.6955,4541.6,4541.5,3.60394]
[1758292334036,0.6955,4541.6,4541.5,3.2078]
[1758292334336,0.6955,4541.6,4541.5,3.60394]
[1758292335135,0.93119357,4541.6,4541.5,0.39614]
[1758292335335,0.6955,4541.6,4541.5,3.60394]
[1758292335842,0.6955,4541.4,4541.3,0.41815]
[1758292336235,0.93120933,4541.4,4541.3,0.022]
[1758292337743,0.6955,4541.4,4541.3,0.39615]
[1758292337947,0.93117583,4541.4,4541.3,0.39615]
[1758292338240,0.82,4541.0,4540.9,3.60399]
[1758292338640,0.82,4541.0,4540.9,3.2078]
[1758292339040,0.82,4541.0,4540.9,3.60399]
[1758292340342,1.05555968,4541.0,4540.9,0.39619]
[1758292341142,0.82,4541.0,4540.9,0.39619]
[1758292341944,0.6955,4540.8,4540.7,0.022]
[1758292342146,0.6955,4540.8,4540.7,0.41821]
[1758292343151,0.93102265,4540.8,4540.7,0.022]
[1758292343644,0.6955,4539.9,4539.8,3.2078]
[1758292343946,0.6955,4539.9,4539.8,3.60408]
[1758292344635,0.4961,4539.9,4539.8,3.60408]
[1758292345836,0.2976,4539.9,4539.8,3.60408]
[1758292347746,0.6955,4539.9,4539.8,3.2078]
[1758292347947,0.1245,4539.5,4539.2,3.2078]
[1758292348145,0.6955,4539.3,4539.2,3.60414]
[1758292349547,0.6955,4539.3,4539.2,3.2078]
[1758292351755,0.6955,4539.3,4538.7,0.228]
[1758292351756,0.6955,4539.3,4538.7,0.39637]
[1758292352044,0.7135,4538.8,4538.7,0.39638]
[1758292354352,0.318,4538.7,4538.6,3.2078]
[1758292354554,0.7135,4538.7,4538.6,3.2078]
[1758292356746,0.5186,4538.7,4538.6,3.2078]
[1758292358862,0.7135,4538.7,4538.6,3.2078]
[1758292359352,0.7135,4538.7,4538.6,3.60419]
[1758292360648,0.1223,4539.0,4537.8,1.01314]
[1758292360649,0.7135,4538.2,4538.1,3.2078]
[1758292361055,0.7135,4538.2,4538.1,3.60423]
[1758292361454,0.7135,4538.2,4538.1,3.2078]
[1758292361759,0.7135,4538.2,4538.1,3.60423]
[1758292362451,0.5186,4538.2,4538.1,3.60423]
[1758292362647,0.318,4538.2,4538.1,3.60423]
[1758292365352,0.5186,4538.2,4538.1,3.60423]
[1758292365560,0.7135,4538.2,4538.1,3.2078]
[1758292366461,0.7135,4538.2,4538.1,3.60423]
[1758292366657,0.7135,4538.2,4538.1,3.2078]
[1758292367157,0.7135,4538.2,4538.1,3.60423]
[1758292367358,0.7135,4538.2,4538.1,3.2078]
[1758292368056,0.7135,4538.2,4538.1,3.60423]
[1758292368455,0.7135,4538.2,4538.1,3.2078]
[1758292369263,0.8358,4537.5,4537.4,0.022]
[1758292369663,0.7135,4537.2,4537.1,3.2078]
[1758292369863,0.94955889,4537.2,4537.1,3.2078]
[1758292371561,0.94953281,4537.2,4537.1,3.2078]
[1758292374361,0.94953281,4537.2,4537.1,3.60432]
[1758292374865,0.94953281,4537.2,4537.1,3.2078]
[1758292375158,0.75463281,4537.2,4537.1,3.2078]
[1758292375366,0.75463281,4537.2,4537.1,3.60432]
[1758292376163,0.55403281,4537.2,4537.1,3.60432]
[1758292376365,0.23603281,4537.2,4537.1,3.60432]
[1758292376959,0.6409,4538.0,4537.9,0.39645]
[1758292377159,1.17047877,4538.0,4537.4,0.99122]
[1758292377357,1.24307877,4537.9,4537.7,0.39646]
[1758292377564,0.7135,4537.9,4537.7,0.39646]
[1758292378164,0.52982077,4537.8,4537.7,0.39646]
[1758292378366,0.82142077,4537.8,4537.7,0.39646]
[1758292378666,0.2916,4537.8,4537.7,0.39646]
[1758292380360,0.4897,4537.8,4537.7,0.39646]
[1758292380561,0.2916,4537.8,4537.7,0.39646]
[1758292381073,0.4897,4537.8,4537.7,0.39646]
[1758292384768,0.2916,4537.8,4537.7,0.39646]
[1758292384975,0.4897,4537.8,4537.7,0.39646]
[1758292385975,0.7004,4537.8,4537.7,0.39646]
[1758292386673,0.2916,4537.8,4537.7,0.39646]
[1758292388765,0.5249015,4537.8,4537.7,0.39646]
[1758292389784,0.52493668,4537.8,4537.7,0.39646]
[1758292389983,0.2916,4537.8,4537.7,0.62246]
[1758292390381,0.4139,4538.0,4537.9,0.39645]
[1758292390580,0.4139,4538.0,4537.9,0.62245]
[1758292391178,0.4139,4538.0,4537.9,4.62245]
[1758292393474,0.612,4538.0,4537.9,4.62245]
[1758292393982,0.4139,4538.0,4537.9,4.62245]
[1758292394381,0.1223,4538.0,4537.9,4.62245]
[1758292394686,0.1223,4538.5,4538.4,0.3964]
[1758292394983,0.1223,4539.0,4538.9,0.39636]
[1758292395182,0.1223,4539.0,4538.9,3.60416]
[1758292395580,0.4139,4539.0,4538.9,3.60416]
[1758292403094,0.1278,4540.0,4539.4,0.82792]
[1758292403394,0.1278,4540.0,4539.4,4.26172]
[1758292403595,0.3204,4539.5,4539.4,4.15892]
[1758292403893,0.1223,4539.5,4539.4,4.26172]
[1758292404792,0.3204,4539.5,4539.4,4.15892]
[1758292404994,0.612,4539.5,4539.4,4.15892]
[1758292405190,0.4139,4539.5,4539.4,4.26172]
[1758292405893,0.612,4539.5,4539.4,4.15892]
[1758292406393,0.8227,4539.5,4539.4,4.15892]
[1758292406795,0.8227,4539.5,4539.4,3.93292]
[1758292406998,0.8227,4539.5,4539.4,3.99452]
[1758292407199,0.8227,4539.5,4539.4,4.15892]
[1758292409300,0.2916,4539.5,4539.4,4.26172]
[1758292409494,0.3226,4540.0,4539.9,0.72547]
[1758292409799,0.3226,4540.0,4539.9,3.93327]
[1758292409992,0.6349,4540.0,4539.9,3.93327]
[1758292410194,0.8378,4540.0,4539.9,3.93327]
[1758292416501,0.6349,4540.0,4539.9,4.03607]
[1758292416700,0.1278,4540.5,4539.9,3.6398]
[1758292416898,0.3226,4540.5,4540.4,3.93323]
[1758292417099,0.3226,4541.0,4540.9,0.39619]
[1758292417308,0.6349,4541.0,4540.9,3.93319]
[1758292417607,0.8378,4541.0,4540.9,3.76859]
[1758292417907,0.8378,4541.0,4540.9,3.60399]
[1758292418110,0.8378,4541.0,4540.9,0.39619]
[1758292419008,0.8378,4541.0,4540.9,0.56079]
[1758292419603,0.8378,4541.0,4540.9,0.39619]
[1758292420711,0.8378,4541.0,4540.9,3.60399]
[1758292421210,0.8378,4541.0,4540.9,3.76859]
[1758292422915,0.8378,4541.0,4540.9,3.93319]
[1758292423413,1.06997466,4541.0,4540.9,3.93319]
[1758292424209,1.06997466,4541.0,4540.9,3.76859]
[1758292424402,1.06997466,4541.0,4540.9,3.60399]
[1758292425111,1.06997466,4541.0,4540.9,3.76859]
[1758292426717,1.06997466,4541.0,4540.9,3.60399]
[1758292429415,1.06997466,4541.0,4540.9,0.39619]
[1758292429717,0.2029,4540.8,4540.7,0.022]
[1758292429913,1.47264438,4540.8,4540.7,0.022]
[1758292430116,0.8303,4540.5,4540.4,3.60403]
[1758292430316,1.06247466,4540.5,4540.4,3.76863]
[1758292432423,1.06268445,4540.5,4540.4,3.76863]
[1758292433917,1.06268445,4540.5,4540.4,3.93323]
[1758292436217,0.8303,4540.5,4540.4,3.93323]
[1758292436720,0.54476684,4540.5,4540.4,4.03603]
[1758292436925,0.3123,4540.5,4540.4,4.03603]
[1758292437523,0.4326,4540.5,4540.4,4.03603]
[1758292438227,0.6274,4540.5,4540.4,4.03603]
[1758292439224,0.4326,4540.5,4540.4,4.03603]
[1758292439425,0.66515482,4540.5,4540.4,4.03603]
[1758292439723,0.86415482,4540.5,4540.4,3.93323]
[1758292440729,0.66515482,4540.5,4540.4,4.03583]
[1758292440926,0.4326,4540.5,4540.4,4.03583]
[1758292441330,0.29,4540.8,4540.7,0.3962]
[1758292441531,0.2325946,4540.8,4540.7,0.8272]
[1758292442223,0.4178,4541.0,4540.9,0.72458]
[1758292442529,0.84937483,4541.0,4540.9,3.93238]
[1758292442731,1.05097483,4541.0,4540.9,3.93238]
[1758292442928,0.119,4540.5,4540.4,3.82903]
[1758292443131,0.8096,4540.5,4540.4,3.93243]
[1758292444032,1.04226727,4540.5,4540.2,0.022]
[1758292444330,0.6906,4540.3,4540.2,0.022]
[1758292444531,1.45448688,4540.3,4540.2,0.022]
[1758292444733,0.6906,4539.9,4539.8,3.2078]
[1758292444922,0.4006,4539.3,4539.2,3.76833]
[1758292445230,0.6906,4539.3,4539.2,3.76833]
[1758292445428,0.94467839,4539.3,4539.2,3.76833]
[1758292446436,0.94467839,4539.3,4539.2,3.93253]
[1758292446941,0.94458174,4539.3,4539.2,3.93253]
[1758292449938,0.94458174,4539.3,4539.2,3.5362]
[1758292450142,0.94458174,4539.3,4539.2,3.372]
[1758292450343,0.94458174,4539.3,4539.2,3.2078]
[1758292452042,0.94458174,4539.3,4539.0,0.022]
[1758292452241,0.6906,4539.1,4539.0,0.022]
[1758292452447,0.94458174,4539.1,4539.0,0.022]
[1758292452648,0.94458174,4539.1,4539.0,0.1642]
[1758292453639,0.94458174,4539.1,4538.2,0.39641]
[1758292453640,0.119,4538.5,4538.2,0.39641]
[1758292453841,0.119,4538.5,4538.2,0.72481]
[1758292453842,0.489,4538.3,4538.2,0.72481]
[1758292454536,0.489,4538.3,4538.2,0.82741]
[1758292454941,0.29,4538.3,4538.2,0.82741]
[1758292459938,0.489,4538.3,4538.2,0.72481]
[1758292460144,0.6906,4538.3,4538.2,0.72481]
[1758292460644,0.489,4538.2,4538.1,3.2078]
[1758292460850,0.6906,4538.2,4538.1,3.2078]
[1758292461052,0.6906,4538.2,4538.1,3.60423]
[1758292461244,0.6906,4538.2,4538.1,3.2078]
[1758292461446,0.6906,4538.2,4538.1,3.372]
[1758292461747,0.6906,4538.2,4538.1,0.1642]
[1758292461941,0.94917195,4538.2,4538.0,0.022]
[1758292462146,0.6906,4538.2,4538.0,0.022]
[1758292462549,0.94912005,4538.1,4538.0,0.022]
[1758292462944,0.6906,4537.7,4537.6,3.76847]
[1758292463338,0.6906,4537.7,4537.6,3.93267]
[1758292465049,0.6906,4537.7,4537.6,0.1642]
[1758292467054,0.6906,4537.7,4537.6,0.56067]
[1758292467355,0.6906,4537.7,4537.6,0.72487]
[1758292467548,0.29,4537.7,4537.6,0.82747]
[1758292468054,0.29,4537.7,4537.6,4.03527]
[1758292468255,0.489,4537.7,4537.6,3.5362]
[1758292468455,0.489,4537.7,4537.6,0.72487]
[1758292468649,0.702,4537.7,4537.6,0.72487]
[1758292469656,0.702,4537.7,4537.6,0.3284]
[1758292469857,0.702,4537.7,4537.6,0.72487]
[1758292471160,0.702,4537.7,4537.6,0.56147]
[1758292473062,0.702,4537.7,4537.6,0.72647]
[1758292474262,0.95252145,4537.7,4537.6,0.72647]
[1758292474862,0.54052145,4537.7,4537.6,0.82957]
[1758292475762,0.54052145,4537.7,4537.6,4.03737]
[1758292478666,0.95572145,4537.7,4537.6,3.93427]
[1758292479158,0.95572145,4537.7,4537.6,3.60427]
[1758292479963,0.95572145,4537.7,4537.6,3.76927]
[1758292482369,0.95616925,4537.7,4537.6,3.76927]
[1758292484669,0.95616925,4537.7,4537.6,3.93427]
[1758292488672,0.54096925,4537.7,4537.6,4.03737]
[1758292489267,0.25096925,4537.7,4537.6,4.03737]
[1758292489464,0.3003,4538.1,4538.0,0.39644]
[1758292489663,0.25254142,4538.1,4538.0,0.82954]
[1758292490671,0.55284142,4538.1,4538.0,0.82954]
[1758292493772,0.75504142,4538.1,4538.0,0.82954]
[1758292494075,0.55284142,4538.1,4538.0,0.82954]
[1758292495070,0.25254142,4538.1,4538.0,0.82954]
[1758292495270,0.55284142,4538.1,4538.0,0.82954]
[1758292496472,0.75504142,4538.1,4538.0,0.82954]
[1758292496874,0.75504142,4538.1,4538.0,0.72644]
[1758292500182,0.75504142,4538.1,4538.0,0.82944]
[1758292500383,0.55284142,4538.1,4538.0,0.82944]
[1758292500580,0.74524142,4538.1,4538.0,0.72644]
[1758292500882,0.94114142,4538.1,4538.0,0.56144]
[1758292501082,0.94098768,4538.1,4538.0,0.39644]
[1758292501284,0.94098768,4538.1,4538.0,0.56124]
[1758292501883,0.94098768,4538.1,4538.0,0.72604]
[1758292502586,0.55268768,4538.1,4538.0,0.82904]
[1758292503181,0.25238768,4538.1,4538.0,0.82904]
[1758292503484,0.56748768,4538.1,4538.0,0.82904]
[1758292504075,3.2078,4539.7,4538.9,0.49936]
[1758292504281,0.25233383,4539.6,4538.9,4.03676]
[1758292504481,0.5073,4539.0,4538.9,3.76896]
[1758292504683,1.07473383,4539.0,4538.9,0.39636]
[1758292506188,0.3883,4538.6,4538.5,0.225]
[1758292506486,0.7034,4538.6,4538.5,0.225]
[1758292506685,0.7034,4538.6,4538.5,0.95099]
[1758292506882,0.3151,4538.6,4538.5,1.05399]
[1758292507285,0.4341,4539.0,4538.9,0.82896]
[1758292507581,0.68620527,4539.0,4538.9,4.03676]
[1758292508179,0.3151,4539.0,4538.9,4.03676]
[1758292508385,0.6265,4539.5,4539.4,0.72592]
[1758292508580,0.87853074,4539.5,4539.4,0.72592]
[1758292508976,0.6265,4539.5,4539.4,0.72592]
[1758292509788,0.8224,4539.5,4539.4,0.72592]
[1758292510785,0.8224,4539.5,4539.4,0.39632]
[1758292510988,1.07423391,4539.5,4539.4,0.39632]
[1758292511283,0.8199,4539.0,4538.9,3.60416]
[1758292514691,1.07152179,4539.0,4538.9,3.2078]
[1758292514994,0.7034,4538.8,4538.7,0.41838]
[1758292515288,0.63992179,4538.8,4538.6,0.39638]
[1758292515588,0.95502179,4538.7,4538.6,0.39638]
[1758292515985,0.95502179,4538.7,4538.6,0.72598]
[1758292516186,0.95510848,4538.7,4538.6,0.72598]
[1758292517484,0.56680848,4538.7,4538.6,0.82898]
[1758292517680,0.75920848,4538.7,4538.6,0.72598]
[1758292518191,0.95510848,4538.7,4538.6,0.72598]
[1758292518985,0.4316,4539.0,4538.9,0.39636]
[1758292519187,0.68341015,4539.0,4538.9,4.03676]
[1758292519982,0.25181015,4539.0,4538.9,4.26176]
[1758292520387,0.56691015,4539.0,4538.9,4.26176]
[1758292521487,0.25181015,4539.0,4538.9,4.26176]
[1758292521687,0.3151,4539.3,4539.2,0.82893]
[1758292521891,0.56692802,4539.3,4539.2,0.82893]
[1758292522892,0.95522802,4539.3,4539.2,0.72593]
[1758292529096,0.77182802,4539.3,4539.2,0.72593]
[1758292529396,0.25182802,4539.3,4539.2,0.39633]
[1758292535297,0.45532802,4539.3,4539.2,0.39633]
[1758292544206,0.25182802,4539.3,4539.2,0.39633]
[1758292544406,0.45532802,4539.3,4539.2,0.39633]
[1758292547005,0.67562802,4539.3,4539.1,0.39634]
[1758292547205,0.45532802,4539.2,4539.0,0.022]
[1758292547405,0.98744996,4539.1,4539.0,0.022]
[1758292547803,0.98744996,4539.1,4538.9,0.39636]
[1758292548010,0.45532802,4539.0,4538.9,0.39636]
[1758292548206,0.98761927,4539.0,4538.9,0.39636]
[1758292552115,0.99814414,4539.0,4538.9,0.39636]
[1758292552816,0.99814414,4539.0,4538.7,0.41837]
[1758292553115,0.2035,4538.8,4538.7,0.41837]
[1758292553315,0.45532802,4538.8,4538.7,0.41837]
[1758292553514,0.99799833,4538.8,4538.7,0.41837]
[1758292554116,0.45532802,4538.8,4538.7,0.41837]
[1758292554819,0.45532802,4538.8,4538.7,0.39637]
[1758292555418,0.45522404,4538.8,4538.7,0.39637]
[1758292557912,0.45522404,4538.8,4538.5,0.022]
[1758292558113,0.2069,4537.5,4537.4,3.60429]
[1758292558310,0.7129,4537.5,4537.4,3.60429]
[1758292558710,0.7129,4537.5,4537.4,3.80079]
[1758292561115,0.7129,4537.5,4537.4,3.2078]
[1758292561320,0.96429325,4537.5,4537.4,3.2078]
[1758292562826,0.3892,4537.3,4537.2,0.39651]
[1758292563128,0.3892,4537.3,4537.0,0.39652]
[1758292563323,0.6991,4537.1,4537.0,0.39652]
[1758292563518,0.6991,4537.1,4537.0,0.59302]
[1758292563724,0.3892,4536.7,4536.6,0.2185]
[1758292563921,0.95030403,4536.7,4536.6,0.022]
[1758292565121,0.6991,4536.7,4536.6,0.022]
[1758292565324,0.94996986,4536.7,4536.6,0.022]
[1758292565524,0.1961,4536.5,4536.4,3.2078]
[1758292565719,0.6991,4536.5,4536.4,3.2078]
[1758292566329,0.506,4536.5,4536.4,3.6043]
[1758292566932,0.3099,4536.5,4536.4,3.7293]
[1758292567226,0.3099,4537.3,4536.4,3.5328]
[1758292567432,0.506,4537.0,4536.9,4.12583]
[1758292567734,0.506,4537.0,4536.9,4.00083]
[1758292568333,0.6991,4537.0,4536.9,4.00083]
[1758292568531,0.506,4537.0,4536.9,4.12583]
[1758292569024,0.506,4537.0,4536.9,4.00083]
[1758292569228,0.6991,4537.0,4536.9,3.4043]
[1758292569429,0.6991,4537.0,4536.9,3.2078]
[1758292569629,0.3892,4537.0,4536.7,0.39655]
[1758292569829,0.3892,4536.8,4536.7,0.59305]
[1758292570035,0.3099,4536.8,4536.7,0.91805]
[1758292570335,0.6991,4537.2,4537.1,0.79301]
[1758292572733,0.1961,4536.4,4536.3,0.79309]
[1758292572934,0.506,4536.4,4536.3,0.79309]
[1758292573430,0.506,4536.4,4536.3,0.91809]
[1758292573624,0.3099,4536.4,4536.3,0.91809]
[1758292574636,0.506,4536.4,4536.3,0.79309]
[1758292574937,0.6991,4536.4,4536.3,0.79309]
[1758292576432,0.6991,4536.4,4536.3,0.1965]
[1758292576627,0.3099,4536.3,4536.2,3.6044]
[1758292576940,0.6991,4536.3,4536.2,3.8009]
[1758292577338,0.6991,4536.3,4536.2,3.2078]
[1758292578441,0.6991,4536.3,4536.2,3.6044]
[1758292579439,0.6991,4535.9,4535.8,0.59313]
[1758292579634,0.506,4535.9,4535.8,0.91813]
[1758292579829,0.3099,4535.9,4535.8,0.91813]
[1758292580535,0.506,4535.9,4535.8,0.91813]